Cogmind - Beta 12 @@@ ROGUE MODE // 2023.05.12 @ 10:59:28 Player: Mr Goldstein Result: Destroyed by S-10 Pest with Light Assault Rifle Performance ------------- Evolutions (1) 500 Regions Visited (3) 600 Robots Destroyed (0) 0 Value Destroyed (0) 0 Prototype IDs (1) 20 Alien Tech Used (0) 0 Bonus (200) 200 TOTAL SCORE: 1320 Bonus ------- Pacifist 200 Cogmind --------- Core Integrity 0/400 Matter 260/300 Energy 99/100 System Corruption 0% Temperature Cool (0) Movement Core (50) Location -9/Mines Parts ------- > --- POWER (1) -------- (None) > --- PROPULSION (4) --- (None) > --- UTILITY (2) ------ (None) > --- WEAPON (2) ------- (None) > --- INVENTORY (5) ---- Light Deuterium Engine Improved VTOL Module Improved VTOL Module Improved VTOL Module Improved VTOL Module Peak State ------------ > --- POWER ------------ (None) > --- PROPULSION ------- Light Treads Improved VTOL Module > --- UTILITY ---------- (None) > --- WEAPON ----------- (None) > --- INVENTORY -------- (None) [Rating: 5] Favorites ----------- Power None Propulsion Light Treads Treads Light Treads Flight Unit Improved VTOL Module Utility None Weapon None Build | -11 -10 -9 -9 ------- Run | Jun Mat Mat Min Slots Evolved 2 | . . 2 . Power . | . . . . Propulsion 2 | . . 2 . Utility . | . . . . Weapon . | . . . . Parts Attached 5 | 2 2 1 . Power . | . . . . Engine . | . . . . Core . | . . . . Reactor . | . . . . Propulsion 5 | 2 2 1 . Treads 4 | 2 2 . . Leg . | . . . . Wheel . | . . . . Hover . | . . . . Flight 1 | . . 1 . Utility . | . . . . Device . | . . . . Storage . | . . . . Processor . | . . . . Hackware . | . . . . Protection . | . . . . Artifact . | . . . . Weapon . | . . . . Energy Gun . | . . . . Energy Cannon . | . . . . Ballistic Gun . | . . . . Ballistic Cannon . | . . . . Launcher . | . . . . Special Weapon . | . . . . Impact Weapon . | . . . . Slashing Weapon . | . . . . Piercing Weapon . | . . . . Special Melee Weapon . | . . . . Unidentified Prototypes 1 | . . 1 . Parts Lost 1 | . 1 . . Power . | . . . . Propulsion 1 | . 1 . . Utility . | . . . . Weapon . | . . . . Highest Loss Streak 1 | . 1 . . To Critical Strikes . | . . . . Average Slot Usage (%) 8 | . 23 . . Treads 8 | . 23 . . Naked Turns 108 | . 2 78 28 Heaviest Build . | . . . . Greatest Support 40 | 40 20 3 3 Greatest Overweight (x) . | . . . . Average Overweight (x) . | . . . . Largest Inventory Capacity 5 | 5 5 5 5 Average Capacity 5 | 5 5 5 5 Most Carried 5 | . . 5 5 Average Carried 2 | . . 4 5 Final Capacity 5 | 5 5 5 5 Final Carried 5 | . . 5 5 Class Distribution -------------------- 100% | Mutant Dominant Class ---------------- Mutant | -10/Materials Mutant | -9/Materials Mutant | -9/Mines Resources | -11 -10 -9 -9 ----------- Run | Jun Mat Mat Min Matter Collected 203 | 177 . . 26 Remotely . | . . . . Salvage Created . | . . . . Parts . | . . . . Haulers Intercepted . | . . . . Recyclers Shooed . | . . . . Parts Field Recycled . | . . . . Retrieved Matter . | . . . . Parts Self-Destructed . | . . . . Prevented . | . . . . Kills | -11 -10 -9 -9 ------- Run | Jun Mat Mat Min Combat Hostiles Destroyed . | . . . . Classes Destroyed . | . . . . Best Kill Streak . | . . . . Combat Bots Only . | . . . . Max Kills in Single Turn . | . . . . Gunslinging . | . . . . Exploded . | . . . . Melee . | . . . . Uniques/NPCs Destroyed . | . . . . Combat | -11 -10 -9 -9 -------- Run | Jun Mat Mat Min Damage Taken 653 | . 250 349 54 Core 446 | . 43 349 54 Absorbed by Shields . | . . . . Core Remaining (%) 91 | 100 82 . . Volleys Fired . | . . . . Largest . | . . . . Hottest . | . . . . Shots Fired . | . . . . Gun . | . . . . Cannon . | . . . . Launcher . | . . . . Special . | . . . . Kinetic . | . . . . Thermal . | . . . . Explosive . | . . . . Electromagnetic . | . . . . Robot Hit Streak . | . . . . Robot Miss Streak . | . . . . Penetration Max . | . . . . Secondary Targets . | . . . . Shots Hit Robots . | . . . . Core Hits . | . . . . Critical Kills . | . . . . Critical Parts Destroyed . | . . . . Critical Strikes . | . . . . Melee Attacks . | . . . . Impact . | . . . . Slashing . | . . . . Piercing . | . . . . Sneak Attacks . | . . . . Combat Hostiles . | . . . . Follow-up Attacks . | . . . . Damage Inflicted 12 | . . . 12 Guns . | . . . . Cannons . | . . . . Explosions . | . . . . Melee . | . . . . Ramming 12 | . . . 12 Kinetic . | . . . . Thermal . | . . . . Explosive . | . . . . Electromagnetic . | . . . . Impact . | . . . . Slashing . | . . . . Piercing . | . . . . Highest Corruption . | . . . . Average Corruption . | . . . . Corruption Purged . | . . . . Corruption Blocked . | . . . . Overload Shots . | . . . . Overflow Damage . | . . . . Projectiles . | . . . . Explosions . | . . . . Melee . | . . . . Knockbacks . | . . . . Impact . | . . . . Kinetic . | . . . . Secondary . | . . . . Self-Inflicted Damage 6 | . . . 6 Shots . | . . . . Rammed 1 | . . . 1 Targets Rammed 1 | . . . 1 Kicked . | . . . . Crushed . | . . . . Highest Temperature . | . . . . Average Temperature . | . . . . Received Heat Transfer 156 | . 75 81 . Siege Activations . | . . . . Robots Corrupted . | . . . . Combat Hostiles . | . . . . Parts Fried . | . . . . Impact Corruptions . | . . . . Robots Melted . | . . . . Combat Hostiles . | . . . . Parts Melted . | . . . . Heat Transferred . | . . . . Parts Sabotaged . | . . . . Parts Stolen . | . . . . Parts Stripped . | . . . . Power Chain Reactions . | . . . . Missiles Intercepted . | . . . . Alert | -11 -10 -9 -9 ------- Run | Jun Mat Mat Min Peak Influence 80 | . 15 80 31 Initial 31 | . . 5 31 Average 18 | . 2 32 31 Maximum Alert Level . | . . . . Low Security (%) 100 | 100 100 100 100 Level 1 . | . . . . Level 2 . | . . . . Level 3 . | . . . . Level 4 . | . . . . Level 5 . | . . . . High Security . | . . . . Max Security . | . . . . Squads Dispatched 1 | . 1 . . Investigation 1 | . 1 . . Extermination . | . . . . Reinforcement . | . . . . Assault . | . . . . Garrison . | . . . . Intercept . | . . . . Searches Triggered . | . . . . Construction Impeded . | . . . . Haulers Reinforced . | . . . . Active Scanning Responses . | . . . . Cargo Convoy Interrupts . | . . . . Stealth | -11 -10 -9 -9 --------- Run | Jun Mat Mat Min Distress Signals 2 | . 2 . . Communications Jammed . | . . . . Distress Signals . | . . . . Times Spotted 23 | . 7 12 4 Peak Tracking Total 11 | . 7 11 4 Tactical Retreats 3 | . 1 2 . Traps | -11 -10 -9 -9 ------- Run | Jun Mat Mat Min Traps Triggered 1 | . 1 . . Indirectly . | . . . . Trap Hack Attempts . | . . . . Triggered . | . . . . Disarmed . | . . . . Reprogrammed . | . . . . Reused . | . . . . Traps Extracted . | . . . . Installed . | . . . . Triggered . | . . . . Machines | -11 -10 -9 -9 ---------- Run | Jun Mat Mat Min Machines Disabled . | . . . . Max in Single Turn . | . . . . Machines Repaired . | . . . . Machines Sabotaged . | . . . . Overloaded Fab Kills . | . . . . Hacking | -11 -10 -9 -9 --------- Run | Jun Mat Mat Min Machines Accessed . | . . . . Terminals . | . . . . Fabricators . | . . . . Repair Stations . | . . . . Recycling Units . | . . . . Scanalyzers . | . . . . Garrison Access . | . . . . Total Hacks . | . . . . Successful . | . . . . Failed . | . . . . Catastrophic . | . . . . Database Lockouts . | . . . . Manual . | . . . . Terminals . | . . . . Fabricators . | . . . . Repair Stations . | . . . . Recycling Units . | . . . . Scanalyzers . | . . . . Garrison Access . | . . . . Terminal Hacks . | . . . . Fabricator Hacks . | . . . . Repair Station Hacks . | . . . . Recycling Unit Hacks . | . . . . Scanalyzer . | . . . . Garrison Access Hacks . | . . . . Unauthorized Hacks . | . . . . Terminals . | . . . . Fabricators . | . . . . Repair Stations . | . . . . Recycling Units . | . . . . Scanalyzers . | . . . . Garrison Access . | . . . . Data Cores Recovered . | . . . . Used . | . . . . Hacking Detections . | . . . . Full Trace Events . | . . . . Feedback Events . | . . . . Feedback Blocked . | . . . . Robot Schematics Acquired . | . . . . Robots Built . | . . . . Authchips . | . . . . Time . | . . . . Total Robot Build Rating . | . . . . Part Schematics Acquired . | . . . . Parts Built . | . . . . Authchips . | . . . . Time . | . . . . Total Part Build Rating . | . . . . Parts Repaired . | . . . . Time . | . . . . Parts Recycled . | . . . . Recycled Matter . | . . . . Retrieved Matter . | . . . . Retrieved Components . | . . . . Parts Scanalyzed . | . . . . Part Schematics Acquired . | . . . . Parts Damaged . | . . . . Bothacking | -11 -10 -9 -9 ------------ Run | Jun Mat Mat Min Used RIF Installer . | . . . . Robots Hacked . | . . . . Non-combat . | . . . . Combat . | . . . . Robot Hacks Applied . | . . . . Relay Couplers Released . | . . . . Fabnet Peak Effective % . | . . . . Robots Rewired . | . . . . Allies Hacked . | . . . . Hacks Repelled . | . . . . Allies | -11 -10 -9 -9 -------- Run | Jun Mat Mat Min Total Allies . | . . . . Largest Group . | . . . . Highest-Rated Group . | . . . . Highest-Rated Ally . | . . . . Total Orders . | . . . . Ally Attacks . | . . . . Total Damage . | . . . . Kills . | . . . . Allies Corrupted . | . . . . Allies Melted . | . . . . Intel | -11 -10 -9 -9 ------- Run | Jun Mat Mat Min Robot Analysis Total . | . . . . Derelict Logs Recovered 1 | . . . 1 Drone Launches . | . . . . Drone Recoveries . | . . . . Exploration | -11 -10 -9 -9 ------------- Run | Jun Mat Mat Min Turns Passed 203 | 37 53 85 28 Spaces Moved 347 | 40 97 157 53 Core 333 | 27 96 157 53 Treads 14 | 13 1 . . Legs . | . . . . Wheels . | . . . . Hover . | . . . . Flight . | . . . . Fastest Speed 50 | 50 50 50 50 Average Speed 54 | 85 51 50 50 Slowest Speed 160 | 160 160 50 50 Overloaded Moves . | . . . . Propulsion Burnouts . | . . . . Robots Hopped . | . . . . Cave-ins Triggered . | . . . . Exploration Rate (%) 20 | 3 39 23 16 Regions Visited 3 Branch Regions 1 Pre-discovered Areas . | . . . . Known Exits Taken . | . . . . Unknown Exits Taken 3 | 1 1 1 . Scrap Searched 1 | . . . 1 Spaces Dug . | . . . . Terrain Destroyed . | . . . . Melee . | . . . . Projectile . | . . . . AOE . | . . . . Terrain Rammed . | . . . . Walls Destroyed . | . . . . Machines Disabled . | . . . . Actions | -11 -10 -9 -9 --------- Run | Jun Mat Mat Min Total 356 | 41 98 163 54 Wait . | . . . . Move 344 | 39 96 156 53 Hop . | . . . . Pick Up 4 | . . 4 . Fast Attach 5 | 2 2 1 . Attach . | . . . . Detach 1 | . . 1 . Swap . | . . . . Drop 1 | . . 1 . Fire . | . . . . Melee . | . . . . Ram 1 | . . . 1 Kick . | . . . . Crush . | . . . . Escape Stasis . | . . . . Rewire . | . . . . Trap . | . . . . Miscellaneous . | . . . . Route ------- -11/Junkyard -10/Materials -9/Materials -9/Mines History --------- Turn | Location | Event 27 | -11/Junkyard | Discovered new exit (range 16) 38 | -11/Junkyard | Entered Materials 84 | -10/Materials | Discovered new exit (range 14) 91 | -10/Materials | Entered another Materials area 91 | -9/Materials | Evolved 2 slots: Propulsion x2 161 | -9/Materials | Core integrity fell below 50% 170 | -9/Materials | Core integrity fell below 20% 170 | -9/Materials | Discovered new exit (range 14) 176 | -9/Materials | Entered Mines 180 | -9/Mines | Learned 2 Materials zone layouts 204 | -9/Mines | Destroyed by S-10 Pest with Light Assault Rifle Last Messages --------------- 00097_ Dropped Lgt. Treads. 00099_ Acquired Imp. VTOL Module. 00104_ Acquired Lgt. Deuterium Engine. 00116_ T-07 Excavator is excavating. 00139_ K-01 Serf collects debris. 00145_ T-07 Excavator is excavating. 00145_ Critical hit (Burn: +37). 00149_ T-07 Excavator is excavating. 00170_ EXIT=FOUND LOCATION=UNKNOWN GOAL=ESCAPE 00180_ Acquired derelict log, extracted data. Data stored: Materials zone layouts (x2). 00181_ T-07 Excavator is excavating. 00182_ Searching scrap... 00182_ Found Welding Torch. 00182_ Found EM Shotgun. 00182_ Found 26 Matter. 00183_ Acquired 26 matter. 00200_ Slammed into S-10 Pest. Map ----- +----------------------------------------------------+ | # ### #???####??????????????????????????????????? | | # #?# ##### ##?????????????????????????????????? | | ### ##????????????????????????????????? | | #????????????????????????????????? | | ##???????????????????????????????? | | ## #???????????????????????????????? | | ## #### #???????????????????????????????? | | #######??# ##???????????????????????????????? | | #????????# #????????????????????????????????? | | #????????## ##????????????????????????????????? | | #?????????## #?????????????????????????????????? | | #??????????# #?????????????????????????????????? | | ??????????# #?????????????????????????????????? | | ??????????# #?????????????????????????????????? | | ??????????# #?????????????????????????????????? | | ##?????????# ######## #??????????????????????? | | ##??????????# #?????????????????? | | #????????????##### ### ????????????????? | | ?????????????????# #?????????????????????????????? | | ????# ####### #?????????????????????????????? | | ?????? """ #?????????????????????????????? | | ?????? """ ####### #?????????????????????????????? | | ?????????????????# #???????#?????????????????????? | | ?????????????????# #?????? #?????????????????????? | | ?????????????????# ####### ### #????????????? | | ?????????????????# s @ ????????? | | ?????????????????############# #??????????????? | | ?????????????????????????????????????????????????? | | ?????????????????????????????????????????????????? | | ?????????????????????????????????????????????????? | | ?????????????????????????????????????????????????? | | ?????????????????????????????????????????????????? | | | | | | | | | | | | | | | | | | | | | | | | | | | | | | | | | | | | | +----------------------------------------------------+ Best States ------------- Heat Dissipation 28 Energy Generation 5 Energy Capacity 100 Matter Stores 258 Matter Capacity 300 Sight Range 16 Terrain Scan Density 10 Evasion (%) 50 Recoil Reduction 2 Item Schematics ----------------- None Robot Schematics ------------------ None Fabricated ------------ Nothing Alien Tech Used ----------------- None Achievements -------------- None Challenges ------------ None Game ------ Seed SlugPlatingInitializer Manual? 0 Play Time 00:02:09 Cumulative 199.8 hours Start 2023.05.12 @ 10:57:33 End 2023.05.12 @ 10:59:28 Sessions 1 Manual Loads 0 Difficulty Rogue Special Mode None Game No. 568 Rogue 568 Adventurer 0 Explorer 0 Win Type - Total 9 Types 7/0/1/1/0/0/0/0/0 Lore% 79 Gallery% 77 Achievement% 70 Wizard Run 0 Options --------- ASCII 0 Keyboard 0 Movement Numpad Keybinds 0 Fullscreen 1 Font 16/SmallcapsGlow Map View 75x55 Tactical HUD 1 Map Filters NONE Filters NONE Steam 1 RUN: 5d44e5fe-630f-4522-be1b-3a2b8998c45a